[Event "Rapid Tournament (RAP)"]
[Site "Biel, Switzerland"]
[Date "2026.07.12"]
[Round "4.25"]
[White "Menzi, Jonas"]
[Black "Hajduk, Tomasz"]
[Result "1-0"]
[TimeControl "15 + 5"]
[WhiteTitle "-"]
[BlackTitle "-"]
[WhiteFideId "1345133"]
[BlackFideId "21811415"]
[WhiteElo "2114"]
[BlackElo "1879"]

1. e4 {[%clk 00:15:05]} {[%emt 00:00:05]} c5 {[%clk 00:15:13]} {[%emt
00:00:01]} 2. Nf3 {[%clk 00:15:09]} {[%emt 00:00:01]} d6 {[%clk 00:15:18]} 3.
Bb5+ {[%clk 00:15:11]} {[%emt 00:00:03]} Nd7 {[%clk 00:15:21]} {[%emt
00:00:01]} 4. d4 {[%clk 00:15:12]} {[%emt 00:00:05]} cxd4 {[%clk 00:15:17]}
{[%emt 00:00:09]} 5. Qxd4 {[%clk 00:15:15]} {[%emt 00:00:01]} a6 {[%clk
00:15:13]} {[%emt 00:00:10]} 6. Bxd7+ {[%clk 00:15:17]} {[%emt 00:00:03]} Bxd7
{[%clk 00:15:16]} {[%emt 00:00:01]} 7. Nc3 {[%clk 00:15:20]} {[%emt 00:00:02]}
Nf6 {[%clk 00:15:15]} {[%emt 00:00:07]} 8. Bg5 {[%clk 00:15:23]} {[%emt
00:00:01]} e6 {[%clk 00:14:55]} {[%emt 00:00:26]} 9. O-O-O {[%clk 00:15:25]}
{[%emt 00:00:03]} Be7 {[%clk 00:14:41]} {[%emt 00:00:18]} 10. e5 {[%clk
00:15:29]} {[%emt 00:00:02]} dxe5 {[%clk 00:14:26]} {[%emt 00:00:20]} 11. Nxe5
{[%clk 00:15:28]} {[%emt 00:00:05]} Bc6 {[%clk 00:13:22]} {[%emt 00:01:09]} 12.
Nxc6 {[%clk 00:15:32]} {[%emt 00:00:02]} bxc6 {[%clk 00:13:25]} {[%emt
00:00:03]} 13. Bxf6 {[%clk 00:15:32]} {[%emt 00:00:04]} Bxf6 {[%clk 00:13:23]}
{[%emt 00:00:06]} 14. Qc5 {[%clk 00:15:36]} {[%emt 00:00:02]} Qc7 {[%clk
00:13:06]} {[%emt 00:00:22]} 15. Ne4 {[%clk 00:15:40]} Be7 {[%clk 00:09:08]}
{[%emt 00:04:03]} 16. Nd6+ {[%clk 00:15:39]} {[%emt 00:00:05]} Kf8 {[%clk
00:08:30]} {[%emt 00:00:44]} 17. Rd3 {[%clk 00:15:28]} {[%emt 00:00:16]} g6
{[%clk 00:06:40]} {[%emt 00:01:55]} 18. Qe5 {[%clk 00:14:36]} {[%emt 00:00:56]}
Kg8 {[%clk 00:05:45]} {[%emt 00:01:01]} 19. Rhd1 {[%clk 00:13:25]} {[%emt
00:01:15]} h5 {[%clk 00:04:18]} {[%emt 00:01:32]} 20. Nxf7 {[%clk 00:11:03]}
{[%emt 00:02:27]} Qxe5 {[%clk 00:02:47]} {[%emt 00:01:37]} 21. Nxe5 {[%clk
00:11:05]} {[%emt 00:00:02]} Bg5+ {[%clk 00:02:27]} {[%emt 00:00:26]} 22. Kb1
{[%clk 00:11:09]} {[%emt 00:00:01]} Kg7 {[%clk 00:02:22]} {[%emt 00:00:10]} 23.
Rg3 {[%clk 00:06:43]} {[%emt 00:04:30]} Rhd8 {[%clk 00:01:33]} {[%emt
00:00:56]} 24. Re1 {[%clk 00:04:28]} {[%emt 00:02:18]} Bd2 {[%clk 00:01:14]}
{[%emt 00:00:24]} 25. Rxg6+ {[%clk 00:03:18]} {[%emt 00:01:16]} Kh7 {[%clk
00:01:18]} 26. Rf1 {[%clk 00:03:22]} {[%emt 00:00:01]} Rd6 {[%clk 00:01:00]}
{[%emt 00:00:24]} 27. Rf6 {[%clk 00:03:15]} {[%emt 00:00:09]} Bg5 {[%clk
00:00:24]} {[%emt 00:00:42]} 28. Rf7+ {[%clk 00:02:50]} {[%emt 00:00:31]} Kg8
{[%clk 00:00:28]} {[%emt 00:00:01]} 29. Rf3 {[%clk 00:02:40]} {[%emt 00:00:15]}
Rd5 {[%clk 00:00:26]} {[%emt 00:00:07]} 30. Nd3 {[%clk 00:02:26]} {[%emt
00:00:19]} Be7 {[%clk 00:00:25]} {[%emt 00:00:06]} 31. Re1 {[%clk 00:02:22]}
{[%emt 00:00:08]} 1-0

[Event "Rapid Tournament (RAP)"]
[Site "Biel, Switzerland"]
[Date "2026.07.12"]
[Round "4.26"]
[White "Villiger, Jan"]
[Black "El-Mais, Ibaa"]
[Result "1-0"]
[TimeControl "15 + 5"]
[WhiteTitle "-"]
[BlackTitle "-"]
[WhiteFideId "1340891"]
[BlackFideId "1312715"]
[WhiteElo "1846"]
[BlackElo "2100"]

1. e4 {[%clk 00:15:08]} c6 {[%clk 00:15:03]} {[%emt 00:00:08]} 2. d4 {[%clk
00:15:11]} {[%emt 00:00:02]} d5 {[%clk 00:15:07]} {[%emt 00:00:01]} 3. e5
{[%clk 00:15:15]} c5 {[%clk 00:15:10]} {[%emt 00:00:02]} 4. dxc5 {[%clk
00:15:18]} {[%emt 00:00:02]} e6 {[%clk 00:15:14]} {[%emt 00:00:02]} 5. Be3
{[%clk 00:15:14]} {[%emt 00:00:08]} Qc7 {[%clk 00:15:02]} {[%emt 00:00:17]} 6.
Qd4 {[%clk 00:13:21]} {[%emt 00:01:59]} Ne7 {[%clk 00:14:33]} {[%emt 00:00:33]}
7. Nf3 {[%clk 00:11:34]} {[%emt 00:01:51]} Nf5 {[%clk 00:14:29]} {[%emt
00:00:09]} 8. Qd2 {[%clk 00:10:51]} {[%emt 00:00:48]} Nxe3 {[%clk 00:14:31]}
{[%emt 00:00:04]} 9. Qxe3 {[%clk 00:10:24]} {[%emt 00:00:33]} Bxc5 {[%clk
00:14:31]} {[%emt 00:00:05]} 10. Qd2 {[%clk 00:10:01]} {[%emt 00:00:27]} Nc6
{[%clk 00:14:04]} {[%emt 00:00:32]} 11. Bb5 {[%clk 00:09:58]} {[%emt 00:00:08]}
Qb6 {[%clk 00:14:04]} {[%emt 00:00:06]} 12. Bxc6+ {[%clk 00:09:54]} {[%emt
00:00:09]} bxc6 {[%clk 00:14:08]} 13. O-O {[%clk 00:09:15]} {[%emt 00:00:43]}
Qxb2 {[%clk 00:14:09]} {[%emt 00:00:04]} 14. Qc3 {[%clk 00:08:50]} {[%emt
00:00:30]} Qxc3 {[%clk 00:13:52]} {[%emt 00:00:22]} 15. Nxc3 {[%clk 00:08:53]}
{[%emt 00:00:02]} Be7 {[%clk 00:13:35]} {[%emt 00:00:22]} 16. Rab1 {[%clk
00:08:46]} {[%emt 00:00:12]} Kd7 {[%clk 00:13:31]} {[%emt 00:00:10]} 17. Na4
{[%clk 00:08:45]} {[%emt 00:00:05]} Ba6 {[%clk 00:13:15]} {[%emt 00:00:21]} 18.
Rfd1 {[%clk 00:08:44]} {[%emt 00:00:05]} Rab8 {[%clk 00:13:18]} {[%emt
00:00:03]} 19. Nd4 {[%clk 00:07:50]} {[%emt 00:00:59]} c5 {[%clk 00:13:05]}
{[%emt 00:00:19]} 20. Nb3 {[%clk 00:07:53]} Rhc8 {[%clk 00:12:34]} {[%emt
00:00:36]} 21. Nbxc5+ {[%clk 00:06:05]} {[%emt 00:01:54]} Kd8 {[%clk 00:11:37]}
{[%emt 00:01:01]} 22. Nxa6 {[%clk 00:06:04]} {[%emt 00:00:06]} Rxb1 {[%clk
00:11:39]} {[%emt 00:00:03]} 23. Rxb1 {[%clk 00:06:08]} Rxc2 {[%clk 00:11:44]}
{[%emt 00:00:01]} 24. g3 {[%clk 00:05:58]} {[%emt 00:00:14]} Rxa2 {[%clk
00:11:34]} {[%emt 00:00:15]} 25. N4c5 {[%clk 00:06:01]} {[%emt 00:00:02]} Bxc5
{[%clk 00:10:51]} {[%emt 00:00:48]} 26. Nxc5 {[%clk 00:06:05]} {[%emt
00:00:01]} Kc7 {[%clk 00:10:38]} {[%emt 00:00:18]} 27. Nd3 {[%clk 00:04:38]}
{[%emt 00:01:32]} a5 {[%clk 00:10:40]} {[%emt 00:00:04]} 28. Kf1 {[%clk
00:03:55]} {[%emt 00:00:47]} Rd2 {[%clk 00:10:24]} {[%emt 00:00:21]} 29. Nc5
{[%clk 00:03:53]} {[%emt 00:00:07]} Kc6 {[%clk 00:10:20]} {[%emt 00:00:10]} 30.
Nb3 {[%clk 00:03:54]} {[%emt 00:00:04]} Ra2 {[%clk 00:10:22]} {[%emt 00:00:02]}
31. Ke1 {[%clk 00:03:29]} {[%emt 00:00:29]} a4 {[%clk 00:10:05]} {[%emt
00:00:24]} 32. Nc1 {[%clk 00:03:26]} {[%emt 00:00:07]} Rc2 {[%clk 00:08:26]}
{[%emt 00:01:44]} 33. Nd3 {[%clk 00:03:30]} {[%emt 00:00:02]} Rc3 {[%clk
00:08:05]} {[%emt 00:00:26]} 34. Kd2 {[%clk 00:03:32]} {[%emt 00:00:02]} Ra3
{[%clk 00:08:03]} {[%emt 00:00:08]} 35. Rb2 {[%clk 00:03:18]} {[%emt 00:00:19]}
d4 {[%clk 00:07:49]} {[%emt 00:00:19]} 36. Nb4+ {[%clk 00:01:26]} {[%emt
00:01:56]} Kc5 {[%clk 00:07:31]} {[%emt 00:00:22]} 37. Nd3+ {[%clk 00:01:14]}
{[%emt 00:00:18]} Kd5 {[%clk 00:06:26]} {[%emt 00:01:10]} 38. f3 {[%clk
00:01:01]} {[%emt 00:00:18]} Ra1 {[%clk 00:06:00]} {[%emt 00:00:31]} 39. Rc2
{[%clk 00:01:05]} {[%emt 00:00:01]} 1-0

[Event "Rapid Tournament (RAP)"]
[Site "Biel, Switzerland"]
[Date "2026.07.12"]
[Round "4.27"]
[White "Fogo Esquivel, Levi Kalani Alexander"]
[Black "Bonanomi, Silvan"]
[Result "1/2-1/2"]
[TimeControl "15 + 5"]
[WhiteTitle "-"]
[BlackTitle "-"]
[WhiteFideId "5183189"]
[BlackFideId "1352644"]
[WhiteElo "2088"]
[BlackElo "1867"]

1. e4 {[%clk 00:14:53]} {[%emt 00:00:15]} c5 {[%clk 00:15:05]} {[%emt
00:00:05]} 2. Nf3 {[%clk 00:14:56]} {[%emt 00:00:02]} Nf6 {[%clk 00:15:08]}
{[%emt 00:00:03]} 3. Nc3 {[%clk 00:14:59]} {[%emt 00:00:01]} d6 {[%clk
00:15:09]} {[%emt 00:00:03]} 4. d4 {[%clk 00:15:03]} {[%emt 00:00:02]} cxd4
{[%clk 00:15:13]} {[%emt 00:00:01]} 5. Nxd4 {[%clk 00:15:06]} {[%emt 00:00:02]}
Nc6 {[%clk 00:15:16]} {[%emt 00:00:01]} 6. Bg5 {[%clk 00:15:10]} Bd7 {[%clk
00:15:11]} {[%emt 00:00:10]} 7. Qd3 {[%clk 00:15:02]} {[%emt 00:00:13]} Rc8
{[%clk 00:14:46]} {[%emt 00:00:30]} 8. O-O-O {[%clk 00:14:54]} {[%emt
00:00:13]} Nxd4 {[%clk 00:14:34]} {[%emt 00:00:18]} 9. Qxd4 {[%clk 00:14:56]}
{[%emt 00:00:03]} Qa5 {[%clk 00:14:36]} {[%emt 00:00:02]} 10. Bd2 {[%clk
00:14:12]} {[%emt 00:00:49]} g6 {[%clk 00:14:12]} {[%emt 00:00:30]} 11. f4
{[%clk 00:13:24]} {[%emt 00:00:53]} Bg7 {[%clk 00:13:06]} {[%emt 00:01:11]} 12.
Bc4 {[%clk 00:12:46]} {[%emt 00:00:41]} O-O {[%clk 00:12:59]} {[%emt 00:00:14]}
13. Nd5 {[%clk 00:12:34]} {[%emt 00:00:17]} Qd8 {[%clk 00:12:54]} {[%emt
00:00:09]} 14. Nxf6+ {[%clk 00:12:23]} {[%emt 00:00:16]} Bxf6 {[%clk 00:12:49]}
{[%emt 00:00:10]} 15. e5 {[%clk 00:12:27]} {[%emt 00:00:02]} dxe5 {[%clk
00:12:03]} {[%emt 00:00:51]} 16. fxe5 {[%clk 00:12:29]} {[%emt 00:00:03]} Bg7
{[%clk 00:11:37]} {[%emt 00:00:31]} 17. Be3 {[%clk 00:09:45]} {[%emt 00:02:48]}
Bc6 {[%clk 00:10:19]} {[%emt 00:01:24]} 18. Qxd8 {[%clk 00:04:17]} {[%emt
00:05:32]} Rfxd8 {[%clk 00:10:21]} {[%emt 00:00:04]} 19. e6 {[%clk 00:03:03]}
{[%emt 00:01:19]} f5 {[%clk 00:09:55]} {[%emt 00:00:31]} 20. Rxd8+ {[%clk
00:02:57]} {[%emt 00:00:11]} Rxd8 {[%clk 00:09:59]} 21. Rg1 {[%clk 00:02:50]}
{[%emt 00:00:05]} Be5 {[%clk 00:09:32]} {[%emt 00:00:39]} 22. g3 {[%clk
00:02:52]} {[%emt 00:00:03]} a6 {[%clk 00:09:28]} {[%emt 00:00:08]} 23. c3
{[%clk 00:02:38]} {[%emt 00:00:19]} Kg7 {[%clk 00:09:20]} {[%emt 00:00:14]} 24.
Bb6 {[%clk 00:02:37]} {[%emt 00:00:06]} Rc8 {[%clk 00:08:50]} {[%emt 00:00:34]}
25. Bb3 {[%clk 00:02:41]} {[%emt 00:00:01]} Kf6 {[%clk 00:08:41]} {[%emt
00:00:15]} 26. Be3 {[%clk 00:01:47]} {[%emt 00:00:59]} Rd8 {[%clk 00:08:17]}
{[%emt 00:00:29]} 27. Bb6 {[%clk 00:01:09]} {[%emt 00:00:43]} Rc8 {[%clk
00:07:37]} {[%emt 00:00:45]} 28. Rd1 {[%clk 00:00:29]} {[%emt 00:00:45]} Bf3
{[%clk 00:07:28]} {[%emt 00:00:14]} 29. Rf1 {[%clk 00:00:28]} {[%emt 00:00:05]}
Be4 {[%clk 00:07:30]} {[%emt 00:00:03]} 30. Kd2 {[%clk 00:00:25]} {[%emt
00:00:09]} Rc6 {[%clk 00:07:33]} {[%emt 00:00:02]} 31. Be3 {[%clk 00:00:28]}
{[%emt 00:00:01]} Rd6+ {[%clk 00:07:35]} {[%emt 00:00:04]} 32. Ke1 {[%clk
00:00:31]} {[%emt 00:00:01]} Bd5 {[%clk 00:07:35]} {[%emt 00:00:06]} 33. Bc5
{[%clk 00:00:16]} {[%emt 00:00:20]} Rd8 {[%clk 00:06:05]} {[%emt 00:01:35]} 34.
Bb6 {[%clk 00:00:20]} {[%emt 00:00:02]} Rd6 {[%clk 00:05:54]} {[%emt 00:00:15]}
35. Bc5 {[%clk 00:00:19]} {[%emt 00:00:06]} Rd8 {[%clk 00:05:57]} {[%emt
00:00:02]} 1/2-1/2

[Event "Rapid Tournament (RAP)"]
[Site "Biel, Switzerland"]
[Date "2026.07.12"]
[Round "4.28"]
[White "Haugner, Jan"]
[Black "Carey, Michael"]
[Result "1-0"]
[TimeControl "15 + 5"]
[WhiteTitle "-"]
[BlackTitle "-"]
[WhiteFideId "24655244"]
[BlackFideId "30923760"]
[WhiteElo "2079"]
[BlackElo "1850"]

1. e4 {[%clk 00:15:08]} {[%emt 00:02:05]} c5 {[%clk 00:15:09]} {[%emt
00:00:01]} 2. Nc3 {[%clk 00:15:12]} {[%emt 00:00:01]} Nc6 {[%clk 00:15:13]}
{[%emt 00:00:02]} 3. g3 {[%clk 00:15:14]} {[%emt 00:00:03]} g6 {[%clk
00:15:17]} 4. Bg2 {[%clk 00:15:18]} Bg7 {[%clk 00:15:21]} {[%emt 00:00:01]} 5.
d3 {[%clk 00:15:22]} {[%emt 00:00:02]} Rb8 {[%clk 00:15:25]} 6. a4 {[%clk
00:15:25]} {[%emt 00:00:03]} d6 {[%clk 00:14:39]} {[%emt 00:00:50]} 7. f4
{[%clk 00:15:27]} {[%emt 00:00:03]} Nd4 {[%clk 00:13:05]} {[%emt 00:01:39]} 8.
h3 {[%clk 00:14:33]} {[%emt 00:00:59]} e5 {[%clk 00:12:30]} {[%emt 00:00:39]} 9.
Nf3 {[%clk 00:12:23]} {[%emt 00:02:15]} Ne7 {[%clk 00:12:30]} {[%emt 00:00:06]}
10. O-O {[%clk 00:12:21]} {[%emt 00:00:08]} O-O {[%clk 00:12:33]} {[%emt
00:00:02]} 11. fxe5 {[%clk 00:10:40]} {[%emt 00:01:46]} dxe5 {[%clk 00:12:36]}
{[%emt 00:00:02]} 12. Bg5 {[%clk 00:10:37]} {[%emt 00:00:07]} f6 {[%clk
00:12:05]} {[%emt 00:00:36]} 13. Be3 {[%clk 00:10:29]} {[%emt 00:00:13]} Be6
{[%clk 00:11:45]} {[%emt 00:00:25]} 14. Nb5 {[%clk 00:08:40]} {[%emt 00:01:54]}
a6 {[%clk 00:11:26]} {[%emt 00:00:24]} 15. Na3 {[%clk 00:08:42]} {[%emt
00:00:02]} b5 {[%emt 00:00:33]} 16. axb5 {[%clk 00:08:39]} axb5 {[%clk
00:11:11]} {[%emt 00:00:01]} 17. Nd2 {[%clk 00:08:14]} {[%emt 00:00:30]} Qd6
{[%clk 00:08:17]} {[%emt 00:02:59]} 18. c3 {[%clk 00:05:16]} {[%emt 00:03:02]}
Ndc6 {[%clk 00:08:20]} {[%emt 00:00:03]} 19. Nb3 {[%clk 00:05:20]} {[%emt
00:00:01]} c4 {[%clk 00:07:24]} {[%emt 00:01:01]} 20. Nc5 {[%clk 00:04:58]}
{[%emt 00:00:27]} cxd3 {[%clk 00:06:24]} {[%emt 00:01:04]} 21. Nxe6 {[%clk
00:04:59]} {[%emt 00:00:05]} Qxe6 {[%clk 00:06:28]} {[%emt 00:00:01]} 22. Qxd3
{[%clk 00:05:03]} {[%emt 00:00:01]} Rfd8 {[%clk 00:06:08]} {[%emt 00:00:25]} 23.
Qe2 {[%clk 00:04:35]} {[%emt 00:00:32]} b4 {[%clk 00:06:08]} {[%emt 00:00:05]}
24. Nc4 {[%clk 00:04:24]} {[%emt 00:00:17]} bxc3 {[%clk 00:05:22]} {[%emt
00:00:51]} 25. bxc3 {[%clk 00:04:27]} Rb3 {[%clk 00:03:56]} {[%emt 00:01:32]}
26. Rfc1 {[%clk 00:04:25]} {[%emt 00:00:07]} Rdb8 {[%clk 00:03:53]} {[%emt
00:00:08]} 27. Bf1 {[%clk 00:04:17]} {[%emt 00:00:12]} h5 {[%clk 00:03:36]}
{[%emt 00:00:22]} 28. Qa2 {[%clk 00:03:56]} {[%emt 00:00:27]} Kh7 {[%clk
00:03:25]} {[%emt 00:00:15]} 29. Nd2 {[%clk 00:03:43]} {[%emt 00:00:18]} Nd4
{[%clk 00:01:03]} {[%emt 00:02:28]} 30. cxd4 {[%clk 00:02:17]} {[%emt
00:01:32]} exd4 {[%clk 00:00:36]} {[%emt 00:00:31]} 31. Nxb3 {[%clk 00:01:42]}
{[%emt 00:00:40]} Rxb3 {[%clk 00:00:13]} {[%emt 00:00:28]} 32. Rab1 {[%clk
00:01:22]} {[%emt 00:00:25]} dxe3 {[%clk 00:00:06]} {[%emt 00:00:12]} 33. Qxb3
{[%clk 00:01:20]} {[%emt 00:00:08]} Qe5 {[%clk 00:00:09]} {[%emt 00:00:01]} 34.
Qxe3 {[%clk 00:01:18]} {[%emt 00:00:07]} Bh6 {[%clk 00:00:14]} 35. Qc3 {[%clk
00:00:45]} {[%emt 00:00:38]} Qd6 {[%clk 00:00:09]} {[%emt 00:00:10]} 36. Rd1
{[%clk 00:00:44]} {[%emt 00:00:06]} 1-0

[Event "Rapid Tournament (RAP)"]
[Site "Biel, Switzerland"]
[Date "2026.07.12"]
[Round "4.29"]
[White "Piazza, Carlo"]
[Black "Grzeskowiak, Antoni"]
[Result "0-1"]
[TimeControl "15 + 5"]
[WhiteTitle "-"]
[BlackTitle "-"]
[WhiteFideId "809683"]
[BlackFideId "41855531"]
[WhiteElo "2076"]
[BlackElo "1844"]

1. e4 {[%clk 00:15:09]} {[%emt 00:54:16]} d6 {[%clk 00:15:09]} {[%emt
00:00:01]} 2. d4 {[%clk 00:15:12]} {[%emt 00:00:01]} Nf6 {[%clk 00:15:12]}
{[%emt 00:00:02]} 3. Nc3 {[%clk 00:15:16]} {[%emt 00:00:03]} g6 {[%clk
00:15:16]} 4. Be3 {[%clk 00:15:12]} {[%emt 00:00:08]} Bg7 {[%clk 00:15:20]}
{[%emt 00:00:02]} 5. Qd2 {[%clk 00:15:12]} {[%emt 00:00:05]} c6 {[%clk
00:15:23]} {[%emt 00:00:02]} 6. Bh6 {[%clk 00:14:37]} {[%emt 00:00:40]} Bxh6
{[%clk 00:15:25]} {[%emt 00:00:03]} 7. Qxh6 {[%clk 00:14:40]} {[%emt 00:00:01]}
b5 {[%clk 00:15:27]} {[%emt 00:00:04]} 8. f3 {[%clk 00:14:42]} {[%emt
00:00:03]} Qa5 {[%clk 00:15:18]} {[%emt 00:00:14]} 9. Qd2 {[%clk 00:14:35]}
{[%emt 00:00:12]} Nbd7 {[%clk 00:15:16]} {[%emt 00:00:06]} 10. g4 {[%clk
00:14:36]} {[%emt 00:00:05]} Nb6 {[%clk 00:15:03]} {[%emt 00:00:18]} 11. h4
{[%clk 00:14:31]} {[%emt 00:00:10]} h5 {[%clk 00:14:59]} {[%emt 00:00:09]} 12.
g5 {[%clk 00:14:25]} {[%emt 00:00:11]} Nfd7 {[%clk 00:15:00]} {[%emt 00:00:04]}
13. f4 {[%clk 00:13:37]} {[%emt 00:00:53]} Nc4 {[%clk 00:14:38]} {[%emt
00:00:27]} 14. Bxc4 {[%clk 00:13:39]} {[%emt 00:00:02]} bxc4 {[%clk 00:14:41]}
{[%emt 00:00:02]} 15. Nge2 {[%clk 00:10:54]} {[%emt 00:02:50]} Rb8 {[%clk
00:14:34]} {[%emt 00:00:12]} 16. Nd1 {[%clk 00:09:44]} {[%emt 00:01:15]} Qxd2+
{[%clk 00:13:03]} {[%emt 00:01:37]} 17. Kxd2 {[%clk 00:09:47]} {[%emt
00:00:02]} d5 {[%clk 00:12:56]} {[%emt 00:00:11]} 18. exd5 {[%clk 00:07:49]}
{[%emt 00:02:03]} cxd5 {[%clk 00:13:00]} {[%emt 00:00:02]} 19. a4 {[%clk
00:07:24]} {[%emt 00:00:30]} a5 {[%clk 00:12:24]} {[%emt 00:00:40]} 20. Re1
{[%clk 00:07:18]} {[%emt 00:00:12]} Nb6 {[%clk 00:12:10]} {[%emt 00:00:19]} 21.
Ndc3 {[%clk 00:07:08]} {[%emt 00:00:15]} Bg4 {[%clk 00:11:29]} {[%emt
00:00:46]} 22. Ng3 {[%clk 00:07:02]} {[%emt 00:00:11]} e6 {[%clk 00:11:22]}
{[%emt 00:00:11]} 23. Nb5 {[%clk 00:05:48]} {[%emt 00:01:20]} Kd7 {[%clk
00:11:08]} {[%emt 00:00:18]} 24. b3 {[%clk 00:05:14]} {[%emt 00:00:40]} Rhc8
{[%clk 00:10:43]} {[%emt 00:00:30]} 25. Nf1 {[%clk 00:05:14]} {[%emt 00:00:05]}
Bf3 {[%clk 00:10:15]} {[%emt 00:00:33]} 26. Re3 {[%clk 00:05:06]} {[%emt
00:00:13]} Be4 {[%clk 00:10:15]} {[%emt 00:00:04]} 27. Rc3 {[%clk 00:04:52]}
{[%emt 00:00:20]} cxb3 {[%clk 00:08:55]} {[%emt 00:01:25]} 28. cxb3 {[%clk
00:04:55]} {[%emt 00:00:02]} Rxc3 {[%clk 00:08:51]} {[%emt 00:00:08]} 29. Nxc3
{[%clk 00:04:55]} {[%emt 00:00:05]} Bf3 {[%clk 00:08:01]} {[%emt 00:00:55]} 30.
Kd3 {[%clk 00:04:14]} {[%emt 00:00:47]} Nc8 {[%clk 00:07:58]} {[%emt 00:00:08]}
31. Nd2 {[%clk 00:04:15]} {[%emt 00:00:04]} Bg4 {[%clk 00:07:58]} {[%emt
00:00:05]} 32. Nb5 {[%clk 00:03:35]} {[%emt 00:00:45]} Ne7 {[%clk 00:07:48]}
{[%emt 00:00:15]} 33. Rc1 {[%clk 00:02:12]} {[%emt 00:01:28]} Rb7 {[%clk
00:07:36]} {[%emt 00:00:17]} 34. Rc5 {[%clk 00:02:01]} {[%emt 00:00:16]} Nf5
{[%clk 00:07:11]} {[%emt 00:00:30]} 35. Nf1 {[%clk 00:01:44]} {[%emt 00:00:22]}
Nxh4 {[%clk 00:07:04]} {[%emt 00:00:11]} 36. Ne3 {[%clk 00:01:48]} {[%emt
00:00:01]} Bf3 {[%clk 00:06:42]} {[%emt 00:00:28]} 37. Kc3 {[%clk 00:01:36]}
{[%emt 00:00:17]} Nf5 {[%clk 00:06:26]} {[%emt 00:00:20]} 38. Nxf5 {[%clk
00:01:27]} {[%emt 00:00:15]} gxf5 {[%clk 00:06:28]} {[%emt 00:00:03]} 39. Na3
{[%clk 00:01:08]} {[%emt 00:00:24]} Rc7 {[%clk 00:06:26]} {[%emt 00:00:06]} 40.
Rxc7+ {[%clk 00:01:05]} {[%emt 00:00:08]} Kxc7 {[%clk 00:06:29]} {[%emt
00:00:01]} 41. Nb1 {[%clk 00:00:52]} {[%emt 00:00:19]} h4 {[%clk 00:06:28]}
{[%emt 00:00:06]} 42. Nd2 {[%clk 00:00:57]} Be2 {[%clk 00:06:25]} {[%emt
00:00:07]} 0-1

[Event "Rapid Tournament (RAP)"]
[Site "Biel, Switzerland"]
[Date "2026.07.12"]
[Round "4.30"]
[White "Hornung, Hans"]
[Black "Radovcic, Branimir"]
[Result "1-0"]
[TimeControl "15 + 5"]
[WhiteTitle "-"]
[BlackTitle "-"]
[WhiteFideId "4615140"]
[BlackFideId "14595346"]
[WhiteElo "2040"]
[BlackElo "1840"]

1. d4 {[%clk 00:14:55]} {[%emt 00:00:07]} Nf6 {[%clk 00:15:09]} {[%emt
00:00:09]} 2. Bg5 {[%clk 00:14:58]} {[%emt 00:00:02]} c5 {[%clk 00:14:55]}
{[%emt 00:00:20]} 3. d5 {[%clk 00:14:51]} {[%emt 00:00:11]} d6 {[%clk
00:14:41]} {[%emt 00:00:20]} 4. Nc3 {[%clk 00:14:47]} {[%emt 00:00:08]} Nbd7
{[%clk 00:14:45]} {[%emt 00:00:02]} 5. e4 {[%clk 00:14:41]} {[%emt 00:00:09]}
g6 {[%clk 00:14:40]} {[%emt 00:00:11]} 6. f4 {[%clk 00:14:24]} {[%emt
00:00:21]} h6 {[%clk 00:14:40]} {[%emt 00:00:06]} 7. Bh4 {[%clk 00:14:24]}
{[%emt 00:00:04]} Qa5 {[%clk 00:14:31]} {[%emt 00:00:16]} 8. Qd2 {[%clk
00:14:12]} {[%emt 00:00:15]} Bg7 {[%clk 00:14:22]} {[%emt 00:00:15]} 9. Nf3
{[%clk 00:14:09]} {[%emt 00:00:08]} Nb6 {[%clk 00:11:39]} {[%emt 00:02:48]} 10.
Be2 {[%clk 00:13:57]} {[%emt 00:00:17]} Bg4 {[%clk 00:11:07]} {[%emt 00:00:37]}
11. O-O {[%clk 00:13:39]} {[%emt 00:00:22]} O-O {[%clk 00:09:43]} {[%emt
00:01:30]} 12. h3 {[%clk 00:13:20]} {[%emt 00:00:24]} Bxf3 {[%emt 00:00:13]} 13.
Rxf3 {[%clk 00:12:59]} {[%emt 00:00:15]} Rfe8 {[%clk 00:08:17]} {[%emt
00:01:34]} 14. e5 {[%clk 00:12:36]} {[%emt 00:00:27]} dxe5 {[%clk 00:08:13]}
{[%emt 00:00:09]} 15. fxe5 {[%clk 00:12:35]} {[%emt 00:00:06]} Nfxd5 {[%clk
00:08:14]} {[%emt 00:00:05]} 16. Raf1 {[%clk 00:12:16]} {[%emt 00:00:23]} Nxc3
{[%clk 00:07:40]} {[%emt 00:00:41]} 17. bxc3 {[%clk 00:11:08]} {[%emt
00:01:12]} g5 {[%clk 00:06:23]} {[%emt 00:01:22]} 18. Bxg5 {[%clk 00:08:39]}
{[%emt 00:02:33]} hxg5 {[%clk 00:06:27]} {[%emt 00:00:02]} 19. Rxf7 {[%clk
00:07:58]} {[%emt 00:00:45]} Bh6 {[%clk 00:03:33]} {[%emt 00:03:00]} 20. Qd3
{[%clk 00:07:30]} {[%emt 00:00:31]} Bg7 {[%clk 00:03:33]} {[%emt 00:00:07]} 21.
Qg6 {[%clk 00:07:20]} {[%emt 00:00:14]} 1-0